{"text_format":"3","workbook":"xlsx","n_sheets":4,"sheets":["附件1","附件2","附件3","附件4"],"not_rendered":{"defined_names":4},"read":"whole","date_system":"1900"}

{"sheet":"附件1","index":0,"n_rows":49,"n_cols":13,"rows_kept":49,"merged":[[0,0,0,12],[1,0,1,12]]}
["附件1："]
["仪陇县2021年上半年公开招聘中小学和幼儿园教师岗位和条件要求一览表"]
["招聘主管部门","招聘单位","招聘岗位类别","招聘岗位名称","岗位编码","招聘人数","招聘对象及范围","年龄","学历（学位）","专业条件","其他条件","笔试科目","面试方式"]
["仪陇县教育科技和体育局","高完中学校","专技岗位","高中语文教师",540701,1,"1.面向全国\n2.详见公告","1991年4月12日及以后出生","全日制大学本科及以上并取得相应学位","本科：汉语言文学、汉语言、汉语国际教育\n研究生：中国语言文学、汉语言文字学、学科教学（语文）","1.具有高中相应学科教师资格证书\n2.具有二级乙等及以上普通话证书","《教育公共基础》","讲课"]
["仪陇县教育科技和体育局","高完中学校","专技岗位","高中数学教师",540702,8,"1.面向全国\n2.详见公告","1991年4月12日及以后出生","全日制大学本科及以上并取得相应学位","本科：数学与应用数学\n研究生：数学、基础数学、计算数学、应用数学、学科教学（数学）","1.具有高中相应学科教师资格证书\n2.具有二级乙等及以上普通话证书","《教育公共基础》","讲课"]
["仪陇县教育科技和体育局","高完中学校","专技岗位","高中英语教师",540703,1,"1.面向全国\n2.详见公告","1991年4月12日及以后出生","全日制大学本科及以上并取得相应学位","本科：英语\n研究生：英语语言文学、学科教学（英语）","1.具有高中相应学科教师资格证书\n2.具有二级乙等及以上普通话证书","《教育公共基础》","讲课"]
["仪陇县教育科技和体育局","高完中学校","专技岗位","高中物理教师",540704,4,"1.面向全国\n2.详见公告","1991年4月12日及以后出生","全日制大学本科及以上并取得相应学位","本科：物理学\n研究生：物理学、理论物理、学科教学（物理）","1.具有高中相应学科教师资格证书\n2.具有二级乙等及以上普通话证书","《教育公共基础》","讲课"]
["仪陇县教育科技和体育局","高完中学校","专技岗位","高中化学教师",540705,2,"1.面向全国\n2.详见公告","1991年4月12日及以后出生","全日制大学本科及以上并取得相应学位","本科：化学\n研究生：化学、学科教学（化学）","1.具有高中相应学科教师资格证书\n2.具有二级乙等及以上普通话证书","《教育公共基础》","讲课"]
["仪陇县教育科技和体育局","高完中学校","专技岗位","高中生物教师",540706,3,"1.面向全国\n2.详见公告","1991年4月12日及以后出生","全日制大学本科及以上并取得相应学位","本科：生物科学、生物技术、生物信息学\n研究生：生物学、植物学、动物学、微生物学、学科教学（生物）","1.具有高中相应学科教师资格证书\n2.具有二级乙等及以上普通话证书","《教育公共基础》","讲课"]
["仪陇县教育科技和体育局","高完中学校","专技岗位","高中政治教师",540707,4,"1.面向全国\n2.详见公告","1991年4月12日及以后出生","全日制大学本科及以上并取得相应学位","本科：政治学与行政学、国际政治、思想政治教育\n研究生：政治学、国际政治、政治经济学、学科教学（思政）","1.具有高中相应学科教师资格证书\n2.具有二级乙等及以上普通话证书","《教育公共基础》","讲课"]
["仪陇县教育科技和体育局","高完中学校","专技岗位","高中历史教师",540708,3,"1.面向全国\n2.详见公告","1991年4月12日及以后出生","全日制大学本科及以上并取得相应学位","本科：历史学、世界史\n研究生：中国古代史、中国近现代史、中国史、世界史、学科教学（历史）","1.具有高中相应学科教师资格证书\n2.具有二级乙等及以上普通话证书","《教育公共基础》","讲课"]
["仪陇县教育科技和体育局","高完中学校","专技岗位","高中地理教师",540709,3,"1.面向全国\n2.详见公告","1991年4月12日及以后出生","全日制大学本科及以上并取得相应学位","本科：地理科学、自然地理与资源环境、地理信息科学\n研究生：地理学、人文地理学、自然地理学、学科教学（地理）","1.具有高中相应学科教师资格证书\n2.具有二级乙等及以上普通话证书","《教育公共基础》","讲课"]
["仪陇县教育科技和体育局","高完中学校","专技岗位","高中美术教师",540710,1,"1.面向全国\n2.详见公告","1991年4月12日及以后出生","全日制大学本科及以上并取得相应学位","本科：美术学、绘画、中国画、书法学、视觉传达设计\n研究生：美术学、学科教学（美术）","1.具有高中相应学科教师资格证书\n2.具有二级乙等及以上普通话证书","《教育公共基础》","讲课"]
["仪陇县教育科技和体育局","高完中学校","专技岗位","高中信息技术教师",540711,4,"1.面向全国\n2.详见公告","1991年4月12日及以后出生","全日制大学本科及以上并取得相应学位","本科：教育技术学、计算机科学与技术\n研究生：教育技术学、计算机科学与技术","1.具有高中相应学科教师资格证书\n2.具有二级乙等及以上普通话证书","《教育公共基础》","讲课"]
["仪陇县教育科技和体育局","高完中学校","专技岗位","高中心理学教师",540712,1,"1.面向全国\n2.详见公告","1991年4月12日及以后出生","全日制大学本科及以上并取得相应学位","本科：心理学、应用心理学\n研究生：心理学、应用心理学","1.具有高中相应学科教师资格证书\n2.具有二级乙等及以上普通话证书","《教育公共基础》","讲课"]
["仪陇县教育科技和体育局","高完中学校","专技岗位","高中物理实验员",540713,1,"1.面向全国\n2.详见公告","1991年4月12日及以后出生","全日制大学本科及以上","本科：物理学、应用物理学、科学教育\n研究生：物理学、理论物理、学科教学（物理）","1.具有高中相应学科教师资格证书\n2.具有二级乙等及以上普通话证书","《教育公共基础》","讲课"]
["仪陇县教育科技和体育局","高完中学校","专技岗位","高中化学实验员",540714,1,"1.面向全国\n2.详见公告","1991年4月12日及以后出生","全日制大学本科及以上","本科：化学、应用化学、科学教育\n研究生：化学、应用化学、学科教学（化学）","1.具有高中相应学科教师资格证书\n2.具有二级乙等及以上普通话证书","《教育公共基础》","讲课"]
["仪陇县教育科技和体育局","高完中学校","专技岗位","高中生物实验员",540715,1,"1.面向全国\n2.详见公告","1991年4月12日及以后出生","全日制大学本科及以上","本科：生物科学、生物技术、生物信息学、应用生物科学、科学教育\n研究生：生物学、植物学、动物学、微生物学、学科教学（生物）","1.具有高中相应学科教师资格证书\n2.具有二级乙等及以上普通话证书","《教育公共基础》","讲课"]
["仪陇县教育科技和体育局","乡镇初中和乡镇九年一贯制学校初中部","专技岗位","初中语文教师(一）",540716,11,"1.面向全国\n2.详见公告","1991年4月12日及以后出生","全日制大学本科及以上","本科：汉语言文学、汉语言、汉语国际教育\n研究生：中国语言文学、汉语言文字学、学科教学（语文）","1.具有初中及以上相应学科教师资格证书\n2.具有二级乙等及以上普通话证书","《教育公共基础》","讲课"]
["仪陇县教育科技和体育局","乡镇初中和乡镇九年一贯制学校初中部","专技岗位","初中语文教师（二）",540717,11,"1.面向全国\n2.详见公告","1991年4月12日及以后出生","全日制大学本科及以上","本科：汉语言文学、汉语言、汉语国际教育\n研究生：中国语言文学、汉语言文字学、学科教学（语文）","1.具有初中及以上相应学科教师资格证书\n2.具有二级乙等及以上普通话证书","《教育公共基础》","讲课"]
["仪陇县教育科技和体育局","乡镇初中和乡镇九年一贯制学校初中部","专技岗位","初中数学教师（一）",540718,10,"1.面向全国\n2.详见公告","1991年4月12日及以后出生","全日制大学本科及以上","本科：数学与应用数学、数理基础科学\n研究生：数学、基础数学、计算数学、应用数学、学科教学（数学）","1.具有初中及以上相应学科教师资格证书\n2.具有二级乙等及以上普通话证书","《教育公共基础》","讲课"]
["仪陇县教育科技和体育局","乡镇初中和乡镇九年一贯制学校初中部","专技岗位","初中数学教师（二）",540719,10,"1.面向全国\n2.详见公告","1991年4月12日及以后出生","全日制大学本科及以上","本科：数学与应用数学、数理基础科学\n研究生：数学、基础数学、计算数学、应用数学、学科教学（数学）","1.具有初中及以上相应学科教师资格证书\n2.具有二级乙等及以上普通话证书","《教育公共基础》","讲课"]
["仪陇县教育科技和体育局","乡镇初中和乡镇九年一贯制学校初中部","专技岗位","初中英语教师",540720,10,"1.面向全国\n2.详见公告","1991年4月12日及以后出生","全日制大学本科及以上","本科：英语、商务英语\n研究生：英语语言文学、学科教学（英语）","1.具有初中及以上相应学科教师资格证书\n2.具有二级乙等及以上普通话证书","《教育公共基础》","讲课"]
["仪陇县教育科技和体育局","乡镇初中和乡镇九年一贯制学校初中部","专技岗位","初中物理教师",540721,4,"1.面向全国\n2.详见公告","1991年4月12日及以后出生","全日制大学本科及以上","本科：物理学、应用物理学、科学教育\n研究生：物理学、理论物理、学科教学（物理）","1.具有初中及以上相应学科教师资格证书\n2.具有二级乙等及以上普通话证书","《教育公共基础》","讲课"]
["仪陇县教育科技和体育局","乡镇初中和乡镇九年一贯制学校初中部","专技岗位","初中化学教师",540722,3,"1.面向全国\n2.详见公告","1991年4月12日及以后出生","全日制大学本科及以上","本科：化学、应用化学、科学教育\n研究生：化学、应用化学、学科教学（化学）","1.具有初中及以上相应学科教师资格证书\n2.具有二级乙等及以上普通话证书","《教育公共基础》","讲课"]
["仪陇县教育科技和体育局","乡镇初中和乡镇九年一贯制学校初中部","专技岗位","初中生物教师",540723,3,"1.面向全国\n2.详见公告","1991年4月12日及以后出生","全日制大学本科及以上","本科：生物科学、生物技术、生物信息学、应用生物科学、科学教育\n研究生：生物学、植物学、动物学、微生物学、学科教学（生物）","1.具有初中及以上相应学科教师资格证书\n2.具有二级乙等及以上普通话证书","《教育公共基础》","讲课"]
["仪陇县教育科技和体育局","乡镇初中和乡镇九年一贯制学校初中部","专技岗位","初中政治教师",540724,3,"1.面向全国\n2.详见公告","1991年4月12日及以后出生","全日制大学本科及以上","本科：政治学与行政学、国际政治、思想政治教育、人文教育\n研究生：政治学、国际政治、政治经济学、学科教学（思政）","1.具有初中及以上相应学科教师资格证书\n2.具有二级乙等及以上普通话证书","《教育公共基础》","讲课"]
["仪陇县教育科技和体育局","乡镇初中和乡镇九年一贯制学校初中部","专技岗位","初中历史教师",540725,3,"1.面向全国\n2.详见公告","1991年4月12日及以后出生","全日制大学本科及以上","本科：历史学、世界史、人文教育\n研究生：中国古代史、中国近现代史、中国史、世界史、学科教学（历史）","1.具有初中及以上相应学科教师资格证书\n2.具有二级乙等及以上普通话证书","《教育公共基础》","讲课"]
["仪陇县教育科技和体育局","乡镇初中和乡镇九年一贯制学校初中部","专技岗位","初中地理教师",540726,3,"1.面向全国\n2.详见公告","1991年4月12日及以后出生","全日制大学本科及以上","本科：地理科学、自然地理与资源环境、地理信息科学、人文教育\n研究生：地理学、人文地理学、自然地理学、学科教学（地理）","1.具有初中及以上相应学科教师资格证书\n2.具有二级乙等及以上普通话证书","《教育公共基础》","讲课"]
["仪陇县教育科技和体育局","乡镇初中和乡镇九年一贯制学校初中部","专技岗位","初中音乐教师",540727,3,"1.面向全国\n2.详见公告","1991年4月12日及以后出生","全日制大学本科及以上","本科：音乐学、音乐表演、舞蹈学、舞蹈表演、舞蹈教育\n研究生：音乐学、音乐与舞蹈学、学科教学（音乐）","1.具有初中及以上相应学科教师资格证\n2.具有二级乙等及以上普通话证书","《教育公共基础》","讲课"]
["仪陇县教育科技和体育局","乡镇初中和乡镇九年一贯制学校初中部","专技岗位","初中体育教师",540728,5,"1.面向全国\n2.详见公告","1991年4月12日及以后出生","全日制大学本科及以上","本科：体育教育、运动训练、武术与民族传统体育、社会体育指导与管理\n研究生：体育学、体育教育训练学、民族传统体育学、学科教学（体育）","1.具有初中及以上相应学科教师资格证书\n2.具有二级乙等及以上普通话证书","《教育公共基础》","讲课"]
["仪陇县教育科技和体育局","乡镇初中和乡镇九年一贯制学校初中部","专技岗位","初中美术教师",540729,3,"1.面向全国\n2.详见公告","1991年4月12日及以后出生","全日制大学本科及以上","本科：美术学、绘画、中国画、书法学、视觉传达设计\n研究生：美术学、学科教学（美术）","1.具有初中及以上相应学科教师资格证书\n2.具有二级乙等及以上普通话证书","《教育公共基础》","讲课"]
["仪陇县教育科技和体育局","乡镇初中和乡镇九年一贯制学校初中部","专技岗位","初中信息技术教师",540730,3,"1.面向全国\n2.详见公告","1991年4月12日及以后出生","全日制大学本科及以上","本科：教育技术学、计算机科学与技术、网络工程、软件工程\n研究生：教育技术学、计算机科学与技术","1.具有初中及以上相应学科教师资格证书\n2.具有二级乙等及以上普通话证书","《教育公共基础》","讲课"]
["仪陇县教育科技和体育局","乡镇小学和乡镇九年一贯制学校小学部","专技岗位","小学语文教师（一）",540731,13,"1.面向全国\n2.详见公告","1991年4月12日及以后出生","全日制大学专科及以上","专科：小学教育、初等教育、语文教育、汉语\n本科：汉语言文学、汉语言、汉语国际教育、小学教育\n研究生：中国语言文学、汉语言文字学、学科教学（语文）","1.具有小学及以上相应学科教师资格证书\n2.具有二级甲等及以上普通话证书\n","《教育公共基础》","讲课"]
["仪陇县教育科技和体育局","乡镇小学和乡镇九年一贯制学校小学部","专技岗位","小学语文教师（二）",540732,13,"1.面向全国\n2.详见公告","1991年4月12日及以后出生","全日制大学专科及以上","专科：小学教育、初等教育、语文教育、汉语\n本科：汉语言文学、汉语言、汉语国际教育、小学教育\n研究生：中国语言文学、汉语言文字学、学科教学（语文）","1.具有小学及以上相应学科教师资格证书\n2.具有二级甲等及以上普通话证书\n","《教育公共基础》","讲课"]
["仪陇县教育科技和体育局","乡镇小学和乡镇九年一贯制学校小学部","专技岗位","小学语文教师（三）",540733,13,"1.面向全国\n2.详见公告","1991年4月12日及以后出生","全日制大学专科及以上","专科：小学教育、初等教育、语文教育、汉语\n本科：汉语言文学、汉语言、汉语国际教育、小学教育\n研究生：中国语言文学、汉语言文字学、学科教学（语文）","1.具有小学及以上相应学科教师资格证书\n2.具有二级甲等及以上普通话证书\n","《教育公共基础》","讲课"]
["仪陇县教育科技和体育局","乡镇小学和乡镇九年一贯制学校小学部","专技岗位","小学数学教师（一）",540734,12,"1.面向全国\n2.详见公告","1991年4月12日及以后出生","全日制大学专科及以上","专科：小学教育、初等教育、数学教育\n本科：数学与应用数学、数理基础科学、小学教育\n研究生：数学、基础数学、计算数学、应用数学、学科教学（数学）","1.具有小学及以上相应学科教师资格证书\n2.具有二级甲等及以上普通话证书\n","《教育公共基础》","讲课"]
["仪陇县教育科技和体育局","乡镇小学和乡镇九年一贯制学校小学部","专技岗位","小学数学教师（二）",540735,12,"1.面向全国\n2.详见公告","1991年4月12日及以后出生","全日制大学专科及以上","专科：小学教育、初等教育、数学教育\n本科：数学与应用数学、数理基础科学、小学教育\n研究生：数学、基础数学、计算数学、应用数学、学科教学（数学）","1.具有小学及以上相应学科教师资格证书\n2.具有二级甲等及以上普通话证书\n","《教育公共基础》","讲课"]
["仪陇县教育科技和体育局","乡镇小学和乡镇九年一贯制学校小学部","专技岗位","小学数学教师（三）",540736,12,"1.面向全国\n2.详见公告","1991年4月12日及以后出生","全日制大学专科及以上","专科：小学教育、初等教育、数学教育\n本科：数学与应用数学、数理基础科学、小学教育\n研究生：数学、基础数学、计算数学、应用数学、学科教学（数学）","1.具有小学及以上相应学科教师资格证书\n2.具有二级甲等及以上普通话证书\n","《教育公共基础》","讲课"]
["仪陇县教育科技和体育局","乡镇小学和乡镇九年一贯制学校小学部","专技岗位","小学英语教师(一）",540737,10,"1.面向全国\n2.详见公告","1991年4月12日及以后出生","全日制大学专科及以上","专科：英语教育、应用英语、商务英语、小学教育\n本科：英语、商务英语、小学教育\n研究生：英语语言文学、学科教学（英语）","1.具有小学及以上相应学科教师资格证书\n2.具有二级甲等及以上普通话证书","《教育公共基础》","讲课"]
["仪陇县教育科技和体育局","乡镇小学和乡镇九年一贯制学校小学部","专技岗位","小学英语教师（二）",540738,10,"1.面向全国\n2.详见公告","1991年4月12日及以后出生","全日制大学专科及以上","专科：英语教育、应用英语、商务英语、小学教育\n本科：英语、商务英语、小学教育\n研究生：英语语言文学、学科教学（英语）","1.具有小学及以上相应学科教师资格证书\n2.具有二级甲等及以上普通话证书","《教育公共基础》","讲课"]
["仪陇县教育科技和体育局","乡镇小学和乡镇九年一贯制学校小学部","专技岗位","小学音乐教师",540739,10,"1.面向全国\n2.详见公告","1991年4月12日及以后出生","全日制大学专科及以上","专科：音乐教育、音乐表演、舞蹈表演、舞蹈教育\n本科：音乐学、音乐表演、舞蹈学、舞蹈表演、舞蹈教育\n研究生：音乐学、音乐与舞蹈学、学科教学（音乐）","1.具有小学及以上相应学科教师资格证书\n2.具有二级甲等及以上普通话证书\n","《教育公共基础》","讲课"]
["仪陇县教育科技和体育局","乡镇小学和乡镇九年一贯制学校小学部","专技岗位","小学体育教师",540740,4,"1.面向全国\n2.详见公告","1991年4月12日及以后出生","全日制大学专科及以上","专科：体育教育、社会体育、民族传统体育、运动训练、体育营运与管理\n本科：体育教育、运动训练、武术与民族传统体育、社会体育指导与管理\n研究生：体育学、体育教育训练学、民族传统体育学、学科教学（体育）","1.具有小学及以上相应学科教师资格证书\n2.具有二级甲等及以上普通话证书","《教育公共基础》","讲课"]
["仪陇县教育科技和体育局","乡镇小学和乡镇九年一贯制学校小学部","专技岗位","小学美术教师",540741,5,"1.面向全国\n2.详见公告","1991年4月12日及以后出生","全日制大学专科及以上","专科：美术、美术教育\n本科：美术学、绘画、中国画、书法学、视觉传达设计\n研究生：美术学、学科教学（美术）","1.具有小学及以上相应学科教师资格证书\n2.具有二级甲等及以上普通话证书","《教育公共基础》","讲课"]
["仪陇县教育科技和体育局","乡镇小学和乡镇九年一贯制学校小学部","专技岗位","小学信息技术教师",540742,3,"1.面向全国\n2.详见公告","1991年4月12日及以后出生","全日制大学专科及以上","专科：现代教育技术、计算机应用技术、计算机网络技术\n本科：教育技术学、计算机科学与技术、网络工程、软件工程\n研究生：教育技术学、计算机科学与技术","1.具有小学及以上相应学科教师资格证书\n2.具有二级甲等及以上普通话证书","《教育公共基础》","讲课"]
["仪陇县教育科技和体育局","乡镇幼儿园和乡镇小学附设幼儿园","专技岗位","学前教育教师（一）",540743,15,"1.面向全国\n2.详见公告","1991年4月12日及以后出生","全日制大学专科及以上","专科：学前教育\n本科：学前教育\n研究生：学前教育学、学前教育","1.具有幼儿园或学前教育教师资格证书\n2.具有二级甲等及以上普通话证书","《教育公共基础》","讲课"]
["仪陇县教育科技和体育局","乡镇幼儿园和乡镇小学附设幼儿园","专技岗位","学前教育教师（二）",540744,15,"1.面向全国\n2.详见公告","1991年4月12日及以后出生","全日制大学专科及以上","专科：学前教育\n本科：学前教育\n研究生：学前教育学","1.具有幼儿园或学前教育教师资格证书\n2.具有二级甲等及以上普通话证书","《教育公共基础》","讲课"]
["仪陇县教育科技和体育局","乡镇幼儿园和乡镇小学附设幼儿园","专技岗位","学前教育教师（三）",540745,15,"1.面向全国\n2.详见公告","1991年4月12日及以后出生","全日制大学专科及以上","专科：学前教育\n本科：学前教育\n研究生：学前教育学","1.具有幼儿园或学前教育教师资格证书\n2.具有二级甲等及以上普通话证书","《教育公共基础》","讲课"]
["仪陇县教育科技和体育局","乡镇幼儿园和乡镇小学附设幼儿园","专技岗位","学前教育教师（四）",540746,15,"1.面向全国\n2.详见公告","1991年4月12日及以后出生","全日制大学专科及以上","专科：学前教育\n本科：学前教育\n研究生：学前教育学","1.具有幼儿园或学前教育教师资格证书\n2.具有二级甲等及以上普通话证书","《教育公共基础》","讲课"]

{"sheet":"附件2","index":1,"n_rows":49,"n_cols":5,"rows_kept":49,"merged":[[1,0,1,4]]}
["附件2:"]
["仪陇县2021年上半年公开招聘中小学和幼儿园教师面试方式及主要范围一览表"]
["主管部门","招聘岗位","面试方式","面试主要范围","备注"]
["仪陇县教育科技和体育局","高中语文教师","讲课","仪陇县高中学校现行使用教材"]
["仪陇县教育科技和体育局","高中数学教师","讲课","仪陇县高中学校现行使用教材"]
["仪陇县教育科技和体育局","高中英语教师","讲课","仪陇县高中学校现行使用教材"]
["仪陇县教育科技和体育局","高中物理教师","讲课","仪陇县高中学校现行使用教材"]
["仪陇县教育科技和体育局","高中化学教师","讲课","仪陇县高中学校现行使用教材"]
["仪陇县教育科技和体育局","高中生物教师","讲课","仪陇县高中学校现行使用教材"]
["仪陇县教育科技和体育局","高中政治教师","讲课","仪陇县高中学校现行使用教材"]
["仪陇县教育科技和体育局","高中历史教师","讲课","仪陇县高中学校现行使用教材"]
["仪陇县教育科技和体育局","高中地理教师","讲课","仪陇县高中学校现行使用教材"]
["仪陇县教育科技和体育局","高中美术教师","讲课","仪陇县高中学校现行使用教材"]
["仪陇县教育科技和体育局","高中信息技术教师","讲课","仪陇县高中学校现行使用教材"]
["仪陇县教育科技和体育局","高中心理学教师","讲课","仪陇县高中学校现行使用教材"]
["仪陇县教育科技和体育局","高中物理实验员","讲课","仪陇县高中学校现行使用教材"]
["仪陇县教育科技和体育局","高中化学实验员","讲课","仪陇县高中学校现行使用教材"]
["仪陇县教育科技和体育局","高中生物实验员","讲课","仪陇县高中学校现行使用教材"]
["仪陇县教育科技和体育局","初中语文教师(一）","讲课","仪陇县初中学校现行使用教材"]
["仪陇县教育科技和体育局","初中语文教师（二）","讲课","仪陇县初中学校现行使用教材"]
["仪陇县教育科技和体育局","初中数学教师（一）","讲课","仪陇县初中学校现行使用教材"]
["仪陇县教育科技和体育局","初中数学教师（二）","讲课","仪陇县初中学校现行使用教材"]
["仪陇县教育科技和体育局","初中英语教师","讲课","仪陇县初中学校现行使用教材"]
["仪陇县教育科技和体育局","初中物理教师","讲课","仪陇县初中学校现行使用教材"]
["仪陇县教育科技和体育局","初中化学教师","讲课","仪陇县初中学校现行使用教材"]
["仪陇县教育科技和体育局","初中生物教师","讲课","仪陇县初中学校现行使用教材"]
["仪陇县教育科技和体育局","初中政治教师","讲课","仪陇县初中学校现行使用教材"]
["仪陇县教育科技和体育局","初中历史教师","讲课","仪陇县初中学校现行使用教材"]
["仪陇县教育科技和体育局","初中地理教师","讲课","仪陇县初中学校现行使用教材"]
["仪陇县教育科技和体育局","初中音乐教师","讲课","仪陇县初中学校现行使用教材"]
["仪陇县教育科技和体育局","初中体育教师","讲课","仪陇县初中学校现行使用教材"]
["仪陇县教育科技和体育局","初中美术教师","讲课","仪陇县初中学校现行使用教材"]
["仪陇县教育科技和体育局","初中信息技术教师","讲课","仪陇县初中学校现行使用教材"]
["仪陇县教育科技和体育局","小学语文教师（一）","讲课","仪陇县小学现行使用教材"]
["仪陇县教育科技和体育局","小学语文教师（二）","讲课","仪陇县小学现行使用教材"]
["仪陇县教育科技和体育局","小学语文教师（三）","讲课","仪陇县小学现行使用教材"]
["仪陇县教育科技和体育局","小学数学教师（一）","讲课","仪陇县小学现行使用教材"]
["仪陇县教育科技和体育局","小学数学教师（二）","讲课","仪陇县小学现行使用教材"]
["仪陇县教育科技和体育局","小学数学教师（三）","讲课","仪陇县小学现行使用教材"]
["仪陇县教育科技和体育局","小学英语教师(一）","讲课","仪陇县小学现行使用教材"]
["仪陇县教育科技和体育局","小学英语教师（二）","讲课","仪陇县小学现行使用教材"]
["仪陇县教育科技和体育局","小学音乐教师","讲课","仪陇县小学现行使用教材"]
["仪陇县教育科技和体育局","小学体育教师","讲课","仪陇县小学现行使用教材"]
["仪陇县教育科技和体育局","小学美术教师","讲课","仪陇县小学现行使用教材"]
["仪陇县教育科技和体育局","小学信息技术教师","讲课","仪陇县小学现行使用教材"]
["仪陇县教育科技和体育局","学前教育教师（一）","讲课","艺术领域的音乐课"]
["仪陇县教育科技和体育局","学前教育教师（二）","讲课","艺术领域的音乐课"]
["仪陇县教育科技和体育局","学前教育教师（三）","讲课","艺术领域的音乐课"]
["仪陇县教育科技和体育局","学前教育教师（四）","讲课","艺术领域的音乐课"]

{"sheet":"附件3","index":2,"n_rows":4,"n_cols":5,"rows_kept":4,"merged":[[1,0,1,4]]}
["附件3:"]
["仪陇县2021年上半年公开招聘中小学和幼儿园教师主管部门基本情况一览表"]
["主管部门","单位\n性质","单位地址","联系电话","主要职能"]
["仪陇县教育科技和体育局","政府机关","仪陇县新政镇宏德大道一段18号","0817-6936108","负责全县教育、科技、体育工作"]

{"sheet":"附件4","index":3,"n_rows":15,"n_cols":48,"rows_kept":15,"merged":[[1,0,1,47],[2,0,4,0],[2,1,2,47],[3,1,4,1],[3,2,3,16],[3,17,3,31],[3,32,3,43],[3,44,4,44],[3,45,4,45],[3,46,4,46],[3,47,4,47]]}
["附件4:"]
["仪陇县2021年上半年公开招聘中小学和幼儿园教师学校及岗位（人数）一览表"]
["招聘单位","招聘岗位"]
[null,"合计","高中教师",{"$nulls":14},"初中教师",{"$nulls":14},"小学教师",{"$nulls":11},"幼儿教师(一)","幼儿教师(二)","幼儿教师(三)","幼儿教师(四)"]
[null,null,"语文","数学","英语","物理","化学","生物","政治","历史","地理","美术","信息技术","心理学","物理实验员","化学实验员","生物实验员","语文(一)","语文\n(二)","数学(一)","数学\n(二)","英语","物理","化学","生物","政治","历史","地理","音乐","体育","美术","信息技术","语文(一)","语文\n(二)","语文\n(三)","数学(一)","数学(二)","数学(三)","英语(一)","英语(二)","音乐","体育","美术","信息技术"]
["合计",{"$f":"SUM(B7:B15)","v":300},{"$f":"SUM(C7:C15)","v":1},{"$f":"SUM(D7:D15)","v":8},1,4,2,3,4,3,3,1,4,1,1,1,1,11,11,10,10,10,4,3,3,3,3,3,3,5,3,3,13,13,13,12,12,12,10,10,10,4,5,3,15,15,15,15]
["仪陇中学",{"$f":"SUM(C7:Q7)","v":5},{"$nulls":10},2,null,1,1,1]
["宏德中学",4,{"$nulls":9},1,2,1]
["复兴中学",5,{"$nulls":3},1,1,1,1,null,1]
["永乐中学",13,1,3,1,2,1,1,1,3]
["马鞍中学",6,null,4,{"$nulls":4},1,null,1]
["仪陇二中",5,null,1,null,1,null,1,1,null,1]
["乡镇初中和乡镇九年一贯制学校初中部",{"$f":"SUM(R13:AF13)","v":85},{"$nulls":15},11,11,10,10,10,4,3,3,3,3,3,3,5,3,3]
["乡镇小学和乡镇九年一贯制学校小学部",{"$f":"SUM(AG14:AR14)","v":117},{"$nulls":30},13,13,13,12,12,12,10,10,10,4,5,3]
["乡镇幼儿园和乡镇小学附设幼儿园",{"$f":"SUM(AS15:AV15)","v":60},{"$nulls":42},15,15,15,15]